bitfinex/quotes_ETHUSD_20220227
["timestamp","ask_amount","ask_price","bid_price","bid_amount"]
[1645931695443,1.1471,2718.1,2718.0,0.00531777]
[1645931695642,1.6771,2718.1,2718.0,0.00531777]
[1645931696281,1.28226603,2717.4,2717.2,0.25]
[1645931696481,1.6771,2718.1,2717.5,0.02127505]
[1645931696482,0.53,2717.7,2717.5,0.02127505]
[1645931697482,1.94303502,2717.7,2717.5,0.02127505]
[1645931698083,2.94303502,2717.7,2717.5,0.02127505]
[1645931699485,1.0,2717.6,2717.5,0.02127505]
[1645931699766,1.53,2717.6,2717.5,0.02127505]
[1645931700361,0.53,2717.6,2717.5,0.02127505]
[1645931700559,1.6771,2717.6,2717.5,0.02127505]
[1645931701559,0.6771,2717.6,2717.5,0.02127505]
[1645931702365,1.0,2717.5,2716.6,0.3694]
[1645931702665,0.53,2717.4,2716.7,0.73039923]
[1645931702865,0.53,2717.4,2716.4,0.6194]
[1645931703067,0.53,2717.4,2716.5,1.09908619]
[1645931703266,0.53,2717.4,2716.6,0.72968619]
[1645931703490,1.06943719,2717.1,2716.6,0.72968619]
[1645931704097,0.94088663,2717.4,2716.6,0.72968619]
[1645931704297,1.26677595,2717.2,2716.5,0.9304]
[1645931705197,1.79677595,2717.2,2716.5,0.9304]
[1645931705398,2.73757595,2717.2,2716.5,0.4706]
[1645931705598,2.73757595,2717.2,2716.2,0.3694]
[1645931705798,2.73757595,2717.2,2716.4,0.3694]
[1645931706097,2.73757595,2717.2,2716.3,0.69840731]
[1645931706098,2.20757595,2717.2,2716.2,0.4704]
[1645931706298,2.20757595,2717.2,2716.3,0.69783682]
[1645931706797,2.20757595,2717.2,2716.2,0.8398]
[1645931707440,2.20757595,2717.2,2716.3,0.69778465]
[1645931707640,2.20757595,2717.2,2716.2,0.8398]
[1645931708041,0.9408,2717.2,2716.2,0.8398]
[1645931708240,0.9408,2717.2,2716.2,0.4704]
[1645931708441,0.9408,2717.2,2716.2,0.1578]
[1645931708641,0.9408,2717.2,2716.2,0.0106]
[1645931709244,1.8994483,2716.7,2716.2,0.0106]
[1645931711303,1.8994483,2716.7,2715.9,7.2802]
[1645931711503,1.8994483,2716.7,2716.0,0.69714742]
[1645931711702,1.8994483,2716.7,2716.2,1.0]
[1645931712103,1.8994483,2716.7,2716.3,0.3694]
[1645931712402,1.8994483,2716.7,2716.2,1.0]
[1645931713505,1.8994483,2716.7,2716.2,1.3694]
[1645931714305,0.9408,2717.1,2716.2,1.3694]
[1645931714306,0.9408,2717.1,2716.5,5.0]
[1645931714515,0.9408,2717.1,2716.9,0.3694]
[1645931715140,0.9408,2717.1,2716.9,1.6321234]
[1645931715541,0.9408,2717.1,2716.9,1.63739022]
[1645931716039,0.9408,2717.1,2716.9,0.37466682]
[1645931716441,0.9408,2717.1,2716.9,0.3694]
[1645931716840,0.9408,2717.1,2716.9,0.37466682]
[1645931717443,0.9408,2717.1,2716.9,11.63466682]
[1645931717645,0.9408,2717.1,2716.9,11.6294]
[1645931717844,0.9408,2717.1,2717.0,3.8694]
[1645931718045,0.9408,2717.1,2717.0,15.1294]
[1645931718246,0.9408,2717.1,2717.0,16.1294]
[1645931718489,0.9408,2717.1,2717.0,4.8694]
[1645931718690,0.9408,2717.1,2717.0,5.5635131]
[1645931718892,0.9408,2717.1,2717.0,1.3694]
[1645931719093,0.9408,2717.1,2717.0,2.06352726]
[1645931719297,0.9408,2717.1,2717.0,1.06352726]
[1645931719493,1.89052047,2717.1,2717.0,1.06352726]
[1645931719697,2.8402483,2717.1,2717.0,1.06352726]
[1645931720100,2.8402483,2717.1,2717.0,15.82352726]
[1645931720301,2.8402483,2717.1,2717.0,16.97072726]
[1645931720501,2.8402483,2717.1,2717.0,15.97072726]
[1645931720705,2.8402483,2717.1,2717.0,16.97072726]
[1645931721406,0.1472,2718.5,2717.0,22.28357929]
[1645931721600,0.3694,2718.8,2717.0,22.28357929]
[1645931721601,0.00567003,2717.8,2717.2,11.6294]
[1645931721804,0.00567003,2717.8,2717.3,15.45412726]
[1645931722004,0.00567003,2717.8,2717.4,0.69412726]
[1645931722248,0.00567003,2717.8,2717.5,3.5]
[1645931722435,0.1471,2718.7,2717.5,3.5]
[1645931722436,1.0,2717.6,2717.5,3.5]
[1645931722636,1.0,2717.6,2717.5,5.19604061]
[1645931724039,1.0,2717.6,2717.5,16.45604061]
[1645931724238,0.08051599,2717.6,2717.5,13.32544061]
[1645931724441,0.08051599,2717.6,2717.5,1.0]
[1645931724847,0.08051599,2717.6,2717.4,0.00525742]
[1645931725042,0.08051599,2717.6,2717.3,16.5765]
[1645931725243,0.08051599,2717.6,2717.4,0.68549226]
[1645931725443,0.08051599,2717.6,2717.4,11.26525742]
[1645931725644,0.08051599,2717.6,2717.4,1.00525742]
[1645931725844,0.08051599,2717.6,2717.4,0.00525742]
[1645931726105,0.08051599,2717.6,2717.3,1.6]
[1645931726304,0.08051599,2717.6,2717.4,0.68539881]
[1645931726507,0.08051599,2717.6,2717.4,0.00526585]
[1645931726710,0.00567324,2717.8,2717.4,0.00526585]
[1645931726919,0.08,2717.5,2717.4,0.00526585]
[1645931727308,0.08,2717.5,2717.4,0.68046753]
[1645931727512,1.22340536,2718.0,2717.1,0.55127048]
[1645931727709,0.08,2717.4,2717.3,0.00526595]
[1645931728509,0.08,2717.4,2717.1,0.55127048]
[1645931728710,0.08,2717.4,2717.2,0.68289965]
[1645931729413,1.22340536,2718.0,2717.2,0.68289965]
[1645931729856,1.22340536,2718.0,2717.2,0.68131539]
[1645931730161,0.08,2717.5,2717.4,0.00526585]
[1645931730355,0.08,2717.5,2717.4,0.68658124]
[1645931730954,0.08,2717.5,2717.4,0.68131539]
[1645931731155,0.03,2717.5,2717.3,0.00526595]
[1645931731358,0.03,2717.5,2717.4,0.68131539]
[1645931731558,0.03,2717.5,2717.3,0.00526595]
[1645931731757,0.03,2717.5,2717.4,0.68131539]
[1645931732163,0.1471,2718.5,2717.4,0.68131539]
[1645931732360,0.3694,2718.6,2717.6,1.41116254]
[1645931732361,0.5165,2718.6,2717.6,1.41116254]
[1645931732560,0.5165,2718.6,2717.7,0.68131539]
[1645931732561,0.00567758,2717.8,2717.7,0.68131539]
[1645931732768,0.00567758,2717.8,2717.7,11.94131539]
[1645931732960,0.00567758,2717.8,2717.7,0.68131539]
[1645931733362,0.00567758,2717.8,2717.5,0.68131539]
[1645931733592,0.10277758,2718.5,2717.6,0.68131539]
[1645931733792,0.10277758,2718.5,2717.7,0.68131539]
[1645931733992,0.10277758,2718.5,2717.8,0.68131539]
[1645931734194,0.10277758,2718.5,2717.9,0.68131539]
[1645931734593,0.85249434,2718.4,2718.0,0.68131539]
[1645931734798,0.85249434,2718.4,2718.1,0.68131539]
[1645931734998,0.85249434,2718.4,2718.2,0.68131539]
[1645931735201,0.85249434,2718.4,2718.3,0.68131539]
[1645931735600,0.85249434,2718.4,2717.5,0.68538266]
[1645931735800,0.85249434,2718.4,2717.6,1.36669805]
[1645931736000,0.85249434,2718.4,2717.7,0.68131539]
[1645931736200,0.85249434,2718.4,2717.8,0.68131539]
[1645931736401,0.13819997,2718.7,2717.8,12.62669805]
[1645931736600,0.85279341,2718.6,2717.9,0.68131539]
[1645931736800,0.85279341,2718.6,2718.0,0.68131539]
[1645931737001,0.85279341,2718.6,2718.1,0.68131539]
[1645931737255,0.85279341,2718.6,2718.2,0.68131539]
[1645931737256,1.25179341,2718.6,2718.2,0.68131539]
[1645931737445,1.25179341,2718.6,2717.6,0.68538266]
[1645931737446,0.85279341,2718.5,2718.3,0.68131539]
[1645931737645,0.85279341,2718.5,2718.4,0.68131539]
[1645931737843,0.13819997,2718.7,2717.7,1.36669805]
[1645931737844,0.85279341,2718.6,2717.7,1.36669805]
[1645931738051,0.85279341,2718.5,2717.8,0.68131539]
[1645931738244,0.85279341,2718.4,2717.9,0.68131539]
[1645931738444,1.03557342,2718.5,2718.0,0.68131539]
[1645931738647,0.85291354,2718.4,2718.1,0.68131539]
[1645931738845,0.85291354,2718.4,2718.2,0.68131539]
[1645931739050,0.00409843,2718.3,2717.6,0.68538266]
[1645931739248,0.00409843,2718.3,2717.6,1.37323751]
[1645931739449,0.00409843,2718.3,2717.7,0.68785485]
[1645931739747,0.00409843,2718.3,2717.6,0.68538266]
[1645931739748,0.85701197,2718.3,2717.8,0.68785485]
[1645931739954,1.03557342,2718.5,2717.9,0.68785485]
[1645931740151,0.00409843,2718.1,2718.0,0.68785485]
[1645931740351,0.00409843,2718.1,2717.7,0.68538266]
[1645931740556,0.00409843,2718.1,2717.7,0.68785485]
[1645931741188,0.85299402,2718.4,2717.7,0.68785485]
[1645931741388,0.85299402,2718.4,2717.6,1.37323751]
[1645931741389,0.00567779,2718.0,2717.6,1.37323751]
[1645931741589,0.00567779,2718.0,2717.7,0.68785485]
[1645931741788,0.00567779,2718.0,2717.8,0.68785485]
[1645931742088,0.00567779,2718.0,2717.9,0.68785485]
[1645931742290,1.05127696,2718.3,2717.6,0.68538266]
[1645931742488,0.00567779,2718.0,2717.6,0.68538266]
[1645931742889,0.00567779,2718.0,2717.7,0.68785485]
[1645931743093,0.00567779,2718.0,2717.8,0.68785485]
[1645931743290,0.00567779,2718.0,2717.9,0.68785485]
[1645931743493,0.3694,2718.2,2717.9,0.68785485]
[1645931743690,1.05127696,2718.3,2717.3,0.68538266]
[1645931743691,0.3694,2718.0,2717.3,0.68538266]
[1645931743892,0.37507779,2718.0,2717.4,0.0052799]
[1645931744195,0.00567779,2718.0,2717.5,0.68820403]
[1645931744762,0.85929993,2717.9,2717.5,0.68820403]
[1645931744951,0.00567778,2717.9,2717.6,0.68820403]
[1645931745151,0.00567778,2717.9,2717.7,0.68820403]
[1645931745351,0.00567778,2717.9,2717.8,0.68820403]
[1645931745552,0.86502163,2717.9,2717.8,0.68820403]
[1645931745951,0.85934385,2717.9,2717.8,0.68820403]
[1645931746152,0.00567782,2718.0,2717.8,0.68820403]
[1645931746353,0.00567782,2718.0,2717.9,0.68820403]
[1645931746554,0.86506466,2718.0,2717.9,0.68820403]
[1645931747056,0.85938684,2718.0,2717.9,0.68820403]
[1645931747456,0.1767,2718.2,2717.9,0.68820403]
[1645931747457,0.86506461,2718.1,2717.9,0.68820403]
[1645931747657,0.85936588,2718.0,2717.4,0.0052799]
[1645931747858,0.85936588,2718.0,2717.5,0.68195015]
[1645931748489,0.00567778,2717.9,2717.6,0.68195015]
[1645931748691,0.00567778,2717.9,2717.7,0.68195015]
[1645931748895,0.00567778,2717.9,2717.8,0.68195015]
[1645931749097,0.86516611,2717.9,2717.5,0.68195015]
[1645931749292,0.00567778,2717.9,2717.5,0.68195015]
[1645931749493,0.1471,2718.2,2717.5,0.68195015]
[1645931749694,0.1471,2718.2,2717.6,0.68195015]
[1645931749695,0.0056777,2717.9,2717.6,0.68195015]
[1645931749893,0.0056777,2717.9,2717.7,0.68195015]
[1645931750094,1.16126768,2717.8,2717.4,0.0052799]
[1645931750293,1.16126768,2717.8,2717.5,0.68220265]
[1645931750900,1.16126768,2717.8,2717.6,0.68220265]
[1645931751100,1.16126768,2717.8,2717.7,0.68220265]
[1645931751496,0.00567763,2717.9,2717.7,0.68220265]
[1645931751697,0.00567763,2717.9,2717.8,0.68220265]
[1645931751897,0.1767,2718.3,2717.8,0.68220265]
[1645931752096,0.1767,2718.3,2717.3,0.68538266]
[1645931752097,0.86834474,2718.2,2717.9,0.68220265]
[1645931752355,0.86834474,2718.2,2718.0,0.68220265]
[1645931752554,0.86834474,2718.2,2718.1,0.68220265]
[1645931752754,1.99628906,2718.2,2718.1,0.68220265]
[1645931752955,2.29628906,2718.2,2718.1,0.68220265]
[1645931754559,2.66568906,2718.2,2717.4,0.0052799]
[1645931754758,0.86834474,2718.1,2717.5,0.67428373]
[1645931755161,0.86834474,2718.1,2717.6,0.67428373]
[1645931755357,0.86834474,2718.1,2717.7,0.67428373]
[1645931755563,0.86834474,2718.1,2717.5,0.67428373]
[1645931755759,0.00567782,2718.0,2717.6,0.67428373]
[1645931755990,0.86834474,2717.9,2717.7,0.67428373]
[1645931756196,0.86834474,2717.9,2717.8,0.67428373]
[1645931756494,0.86834474,2717.9,2717.4,0.69066256]
[1645931756694,0.86834474,2717.9,2717.4,0.68538266]
[1645931756892,0.86834474,2717.8,2717.4,1.36494629]
[1645931757192,0.00567782,2718.0,2717.5,0.67428373]
[1645931757392,0.86950204,2717.9,2717.6,0.67428373]
[1645931757593,0.86950204,2717.9,2717.7,0.67428373]
[1645931757794,0.86950204,2717.9,2717.8,0.67428373]
[1645931758194,0.00567778,2717.9,2717.8,0.67428373]
[1645931758393,0.87517982,2717.9,2717.8,0.67428373]
[1645931758594,0.87517982,2717.9,2717.5,0.68538266]
[1645931758899,0.87517982,2717.9,2717.6,1.35966639]
[1645931758900,0.00567778,2717.9,2717.6,1.35966639]
[1645931759095,0.0296,2718.3,2717.7,0.67428373]
[1645931759296,0.86981171,2718.2,2717.8,0.67428373]
[1645931759498,0.86981171,2718.2,2717.9,0.67428373]
[1645931759748,0.86981171,2718.2,2718.0,0.67428373]
[1645931759944,0.86981171,2718.2,2718.1,0.67428373]
[1645931760346,0.86981171,2718.2,2717.8,0.68538266]
[1645931760545,0.86981171,2718.1,2717.8,0.68538266]
[1645931760745,0.00567765,2718.3,2717.9,0.67428373]
[1645931760948,0.86982541,2718.2,2717.8,0.68538266]
[1645931761552,0.86982541,2718.2,2717.9,0.67428373]
[1645931761747,0.87550315,2718.1,2718.0,0.67428373]
[1645931761949,0.87550315,2718.1,2717.7,0.68538266]
[1645931762150,0.86982541,2718.0,2717.8,0.67428373]
[1645931762346,0.86982541,2718.0,2717.9,0.67428373]
[1645931762746,0.86982541,2718.0,2717.7,0.68538266]
[1645931762949,0.00567777,2718.1,2717.7,0.68538266]
[1645931763149,0.86982541,2718.0,2717.7,0.68538266]
[1645931763351,0.00567777,2718.1,2717.7,0.68538266]
[1645931763602,0.86983429,2718.0,2717.7,0.68538266]
[1645931764010,1.38488215,2718.4,2717.7,1.35966639]
[1645931764212,0.86986805,2718.3,2718.2,0.76878886]
[1645931764408,0.86986805,2718.3,2718.2,1.44307259]
[1645931766826,0.86891408,2718.3,2718.2,1.44307259]
[1645931769953,2.30029521,2718.3,2718.2,1.44307259]
[1645931770154,0.86891408,2718.3,2718.2,1.44307259]
[1645931772005,2.25388507,2718.3,2718.2,1.44307259]
[1645931772402,0.86891408,2718.3,2718.2,1.44307259]
[1645931773601,0.0296,2718.4,2718.2,1.44307259]
[1645931773808,0.0296,2718.4,2718.2,1.06878886]
[1645931773809,0.03527759,2718.4,2718.2,1.06878886]
[1645931774005,0.03527759,2718.4,2718.3,14.76]
[1645931774006,0.00577759,2718.4,2718.3,14.76]
[1645931774205,3.37419879,2719.6,2718.4,14.1294]
[1645931774409,3.37419879,2719.6,2718.6,0.68995684]
[1645931774410,2.6811,2719.6,2718.6,0.68995684]
[1645931774613,2.6811,2719.6,2718.5,4.18995684]
[1645931774614,3.37419879,2719.6,2718.5,4.18995684]
[1645931774855,2.6811,2719.6,2718.5,4.18995684]
[1645931775250,2.6811,2719.6,2718.5,3.5]
[1645931775251,3.37419879,2719.6,2718.5,3.5]
[1645931775452,4.64638434,2719.6,2718.5,4.7324094]
[1645931776255,0.00409417,2719.2,2718.5,4.7324094]
[1645931776456,0.00409417,2719.2,2718.5,3.5]
[1645931776756,1.0,2718.5,2718.3,4.73943792]
[1645931777058,1.0,2718.5,2718.3,1.68995684]
[1645931777257,1.0,2718.5,2718.3,0.68995684]
[1645931777454,1.00409417,2718.5,2718.3,0.68995684]
[1645931777654,1.00409417,2718.5,2718.2,4.9587457]
[1645931778053,1.00409417,2718.5,2718.2,1.4587457]
[1645931778252,1.0,2718.5,2718.2,1.4587457]
[1645931778499,1.00567743,2718.5,2718.2,1.4587457]
[1645931778999,1.00567743,2718.5,2718.2,0.76878886]
[1645931779604,1.0,2718.5,2718.2,0.76878886]
[1645931779806,1.00567743,2718.5,2718.2,0.76878886]
[1645931780508,1.25800556,2718.4,2718.2,0.76878886]
[1645931786899,0.87668846,2718.3,2718.2,0.76878886]
[1645931787101,0.87668846,2718.3,2718.2,1.43269641]
[1645931787300,0.87668846,2718.3,2718.2,0.76878886]
[1645931788102,1.17668846,2718.3,2718.2,0.76878886]
[1645931788300,2.70668846,2718.3,2718.2,0.76878886]
[1645931788500,2.88450338,2718.3,2718.2,0.76878886]
[1645931789099,1.88450338,2718.3,2718.2,0.76878886]
[1645931789499,2.03160338,2718.3,2718.2,0.76878886]
[1645931789954,1.40668846,2718.3,2718.2,0.76878886]
[1645931790160,1.89260093,2718.3,2718.2,0.76878886]
[1645931790456,1.40668846,2718.3,2718.2,0.76878886]
[1645931790657,1.85378846,2718.3,2718.2,0.76878886]
[1645931790858,2.7586505,2718.3,2718.2,0.76878886]
[1645931791054,2.85378846,2718.3,2718.2,0.76878886]
[1645931791258,3.01253874,2718.3,2718.2,0.76878886]
[1645931795716,4.01253874,2718.3,2718.2,0.76878886]
[1645931795916,4.70563753,2718.3,2718.2,0.76878886]
[1645931797443,4.70563753,2718.3,2718.2,0.7678058]
[1645931798048,4.91874628,2718.3,2718.2,0.7678058]
[1645931798849,4.91874628,2718.3,2717.5,0.5]
[1645931798850,14.76,2718.2,2717.7,0.00446845]
[1645931799151,14.76,2718.2,2717.7,6.845e-05]
[1645931799152,16.26,2717.8,2717.7,6.845e-05]
[1645931799349,16.26,2717.8,2717.4,0.01787582]
[1645931799350,0.1471,2717.7,2717.4,0.01787582]
[1645931799555,0.53,2717.6,2717.4,0.01787582]
[1645931799748,2.32378846,2717.5,2717.4,0.01787582]
[1645931799951,0.3694,2717.4,2716.2,3.225251]
[1645931800151,1.0,2717.0,2716.3,0.63834634]
[1645931800353,1.53,2717.0,2716.3,0.63834634]
[1645931800556,0.90134732,2716.9,2716.8,0.5]
[1645931800754,1.43134732,2716.9,2716.8,0.5]
[1645931801201,1.57854732,2716.9,2716.8,0.5]
[1645931801405,1.57854732,2716.9,2716.7,0.00139387]
[1645931801406,7.57854732,2716.9,2716.7,0.00139387]
[1645931801603,1.26663463,2716.8,2716.4,0.62775836]
[1645931801802,1.43134732,2716.7,2715.8,0.25]
[1645931802003,1.0,2716.3,2715.9,0.62773579]
[1645931802204,1.0,2716.3,2715.7,0.62773579]
[1645931802406,1.0,2716.3,2715.8,0.62773579]
[1645931802407,1.4286789,2716.2,2715.8,0.62773579]
[1645931802604,1.4286789,2716.2,2715.9,0.62773579]
[1645931802805,1.4286789,2716.2,2715.5,0.62773579]
[1645931803005,1.4286789,2716.2,2715.6,0.62773579]
[1645931803211,1.7286789,2716.2,2715.7,0.62773579]
[1645931803511,1.7286789,2716.2,2715.2,0.147311]
[1645931803512,1.0,2716.1,2715.8,0.6273519]
[1645931803707,1.0,2716.1,2715.9,0.62729373]
[1645931804006,1.0,2716.1,2715.2,0.147311]
[1645931804205,1.0,2716.1,2715.3,0.62653092]
[1645931804406,1.0,2716.1,2715.3,0.16623092]
[1645931804608,1.0,2716.1,2715.2,0.147311]
[1645931805069,1.0,2716.1,2715.6,0.00526914]
[1645931805269,1.1472,2716.1,2715.6,0.00526914]
[1645931805470,1.0,2716.0,2715.6,0.00526914]
[1645931805668,1.0,2715.9,2715.6,0.00526914]
[1645931805872,1.0,2715.9,2715.2,0.147311]
[1645931806069,1.37569069,2715.6,2715.2,0.147311]
[1645931806269,1.37569069,2715.6,2715.3,0.02107896]
[1645931807070,1.37569069,2715.6,2715.2,0.147311]
[1645931807272,0.71596954,2715.9,2715.2,0.147311]
[1645931807473,0.71596954,2715.9,2714.8,0.86067331]
[1645931807672,0.71596954,2715.9,2714.8,1.00787331]
[1645931808073,1.34530917,2715.6,2714.8,0.86067331]
[1645931808499,0.71596954,2715.9,2714.9,3.8694]
[1645931808702,3.1181,2716.1,2715.1,0.3694]
[1645931808703,2.4409,2716.1,2715.1,0.3694]
[1645931808905,0.8624,2716.3,2715.3,0.3694]
[1645931808906,0.7152,2716.3,2715.3,0.3694]
[1645931809103,0.7152,2716.3,2715.5,0.3694]
[1645931809303,0.7152,2716.3,2715.5,0.5166]
[1645931809504,1.38559277,2716.5,2715.7,0.3694]
[1645931809906,0.00568412,2716.0,2715.7,0.3694]
[1645931810603,0.00568412,2716.0,2715.5,0.3694]
[1645931810806,1.38559277,2716.5,2715.5,0.3694]
[1645931811012,0.00568415,2716.0,2715.7,0.3694]
[1645931811406,0.00568415,2716.0,2715.4,7.36]
[1645931811606,0.00568415,2716.0,2715.5,0.3694]
[1645931812009,1.30803165,2716.3,2715.5,0.3694]
[1645931812275,0.0056842,2715.9,2715.5,0.3694]
[1645931813081,1.30803165,2716.3,2715.4,4.0166]
[1645931813283,1.30803165,2716.3,2715.4,1.55003721]
[1645931813484,0.00568423,2715.8,2715.4,0.3694]
[1645931814284,0.7144,2716.4,2715.4,0.5166]
[1645931814684,0.00568429,2715.7,2715.4,0.5166]
[1645931815087,0.00568429,2715.7,2715.4,0.3694]
[1645931815485,0.7144,2716.4,2715.4,0.3694]
[1645931815685,1.778983,2716.4,2715.4,1.5816692]
[1645931815886,0.00568432,2715.7,2715.4,1.5816692]
[1645931816099,0.00568432,2715.7,2715.4,0.3694]
[1645931816804,1.778983,2716.4,2715.4,0.3694]
[1645931817005,0.00568432,2715.7,2715.5,0.3694]
[1645931818005,1.778983,2716.4,2715.5,0.3694]
[1645931818207,0.00568429,2715.7,2715.5,0.3694]
[1645931819009,0.00568429,2715.7,2715.3,0.5166]
[1645931819210,0.7144,2716.3,2715.3,0.5166]
[1645931819411,0.00568429,2715.7,2715.5,0.3694]
[1645931820454,1.01494715,2716.2,2715.3,0.5166]
[1645931820654,0.00568429,2715.7,2715.3,0.5166]
[1645931820858,0.00568429,2715.7,2715.3,0.3694]
[1645931821056,0.00568429,2715.7,2715.2,0.1472]
[1645931821463,0.00568429,2715.7,2715.1,14.76]
[1645931821656,0.7144,2716.3,2715.1,14.76]
[1645931821858,0.00568438,2715.6,2715.2,0.1472]
[1645931822057,0.00568438,2715.6,2715.5,11.6294]
[1645931822860,1.30925065,2716.5,2715.5,12.7121108]
[1645931823157,1.30925065,2716.5,2715.5,11.6294]
[1645931823158,0.00568432,2715.7,2715.5,11.6294]
[1645931823809,0.00568432,2715.7,2715.4,0.5166]
[1645931824014,1.3326,2716.7,2715.4,0.5166]
[1645931824208,0.00529513,2715.7,2715.5,0.3694]
[1645931824709,0.00529513,2715.7,2715.6,0.57816029]
[1645931825114,1.2037516,2716.4,2715.6,0.57816029]
[1645931825416,0.00529511,2715.8,2715.6,0.57816029]
[1645931826317,1.3326,2716.7,2715.7,0.57816029]
[1645931826519,1.3326,2716.7,2715.8,0.57816029]
[1645931826815,1.3326,2716.7,2715.9,0.57816029]
[1645931827014,1.3326,2716.7,2716.0,0.57816029]
[1645931827254,1.19525432,2716.5,2715.5,1.68948834]
[1645931827455,0.28794612,2716.5,2715.6,0.57816029]
[1645931827658,0.28794612,2716.5,2715.7,0.57816029]
[1645931827854,0.28794612,2716.5,2715.4,13.38213358]
[1645931827855,0.29324082,2716.5,2715.8,0.57816029]
[1645931828054,0.29324082,2716.5,2715.9,0.57816029]
[1645931828354,0.29324082,2716.5,2716.0,0.57816029]
[1645931828556,0.0052947,2716.5,2716.1,0.57816029]
[1645931828755,0.1472,2716.7,2715.6,1.3109134]
[1645931828960,0.00532485,2716.4,2715.7,0.56213115]
[1645931829559,0.00532485,2716.4,2715.8,0.56213115]
[1645931829763,0.00532485,2716.4,2715.9,0.56213115]
[1645931829959,1.36919997,2716.8,2716.0,0.56213115]
[1645931830160,0.00532494,2716.2,2716.1,0.56213115]
[1645931831110,1.66919997,2716.8,2716.1,0.56213115]
[1645931831313,0.99979997,2716.8,2716.1,0.56213115]
[1645931831513,2.3694,2717.0,2716.1,0.56213115]
[1645931831714,0.00532491,2716.3,2716.1,0.56213115]
[1645931832314,2.0,2717.0,2716.2,3.5]
[1645931832515,0.90605998,2717.2,2716.3,11.82213115]
[1645931832516,0.7144,2717.2,2716.3,11.82213115]
[1645931832713,0.7144,2717.2,2716.8,0.86]
[1645931832920,0.7144,2717.2,2716.9,0.56213115]
[1645931833120,0.7144,2717.2,2717.0,0.1472]
[1645931833121,0.0001,2717.2,2717.0,0.1472]
[1645931833317,1.348,2718.2,2717.1,0.56213115]
[1645931833318,1.2008,2718.2,2717.1,0.56213115]
[1645931833618,0.97277584,2718.1,2717.1,11.82213115]
[1645931833919,0.97277584,2718.1,2717.2,0.56213115]
[1645931834118,0.97277584,2718.1,2717.3,0.56213115]
[1645931834320,0.97277584,2718.1,2717.4,0.56213115]
[1645931834516,0.97277584,2718.1,2717.1,3.6471]
[1645931834754,0.97277584,2718.1,2717.3,1.04461564]
[1645931834961,0.00531798,2717.9,2717.4,0.56184731]
[1645931835962,2.5361,2718.3,2717.4,0.56184731]
[1645931836163,0.00532238,2717.8,2717.5,3.5]
[1645931836363,0.00532238,2717.8,2717.6,0.56184731]
[1645931836564,0.00532238,2717.8,2717.4,3.5]
[1645931836762,0.00532238,2717.8,2717.5,0.56185489]
[1645931836967,0.00532238,2717.8,2717.6,0.56185489]
[1645931837263,1.28595378,2718.4,2717.3,1.04461564]
[1645931837465,0.00532238,2717.8,2717.4,4.06182623]
[1645931837663,0.00532238,2717.8,2717.3,1.04461564]
[1645931837664,0.00532238,2717.8,2717.5,0.56182623]
[1645931837863,0.00532238,2717.8,2717.6,0.56182623]
[1645931838063,0.00532238,2717.8,2717.4,0.56182623]
[1645931838264,0.00532238,2717.8,2717.5,0.56191741]
[1645931838515,0.1471,2718.5,2717.5,0.56191741]
[1645931838716,0.00532235,2717.8,2717.5,4.06191741]
[1645931838915,0.00532235,2717.8,2717.6,0.56191741]
[1645931839116,0.00532235,2717.8,2717.3,1.04461564]
[1645931839317,0.00532235,2717.8,2717.4,0.56170717]
[1645931839521,0.1471,2718.5,2717.4,4.06170717]
[1645931839717,0.97265306,2718.4,2717.5,0.56170717]
[1645931839919,0.00531813,2717.7,2717.5,0.56170717]
[1645931840821,0.1471,2718.5,2717.5,0.56170717]
[1645931841023,0.0053181,2717.7,2717.6,3.5]
[1645931841222,0.0053181,2717.7,2717.6,0.56170717]
[1645931841622,0.0053181,2717.7,2717.5,0.56170717]
[1645931842025,0.1471,2718.5,2717.5,0.56170717]
[1645931842264,0.0053181,2717.7,2717.6,3.5]
[1645931842562,0.0053181,2717.7,2717.6,0.56170717]
[1645931842761,0.0053181,2717.7,2717.5,0.56170717]
[1645931843162,0.1471,2718.5,2717.5,0.56170717]
[1645931843365,0.00531839,2717.7,2717.6,3.5]
[1645931843563,0.00531839,2717.7,2717.6,0.56170717]
[1645931843764,0.00531839,2717.7,2717.6,0.56107451]
[1645931843963,0.00531839,2717.7,2717.5,0.56107451]
[1645931844463,5.25352278,2718.6,2717.5,0.56107451]
[1645931844464,6.25352278,2718.6,2717.5,0.56107451]
[1645931844668,0.00531839,2717.7,2717.2,3.5]
[1645931844864,0.00531839,2717.7,2717.3,0.56143431]
[1645931845065,0.00531839,2717.7,2717.4,0.56143431]
[1645931845266,0.00531839,2717.7,2717.1,4.6315]
[1645931845464,0.00531839,2717.7,2717.2,0.56176338]
[1645931845665,0.3694,2718.4,2717.2,0.56176338]
[1645931845872,0.00531842,2717.7,2717.3,3.5]
[1645931846109,0.00531842,2717.7,2717.4,0.56176338]
[1645931846309,0.00531842,2717.7,2717.5,0.56176338]
[1645931846511,0.00531842,2717.7,2717.5,1.22532393]
[1645931846709,1.57523011,2718.4,2717.5,1.22532393]
[1645931846913,0.00531837,2717.7,2717.5,1.22532393]
[1645931847513,0.00139975,2717.7,2717.3,3.5]
[1645931847712,0.00139975,2717.7,2717.4,0.56117662]
[1645931847913,0.3694,2718.4,2717.5,0.56117662]
[1645931848114,0.3694,2718.4,2717.1,14.76]
[1645931848313,0.3694,2718.4,2717.2,0.56114857]
[1645931848515,0.3694,2718.4,2717.3,4.90613812]
[1645931848716,0.3694,2718.4,2717.4,0.56114857]
[1645931849315,0.3694,2718.5,2717.4,0.56114857]
[1645931849516,0.97127259,2718.4,2717.4,0.56114857]
[1645931850559,0.97127259,2718.4,2717.4,4.06114857]
[1645931850560,0.00568297,2718.0,2717.4,4.06114857]
[1645931850862,0.00568297,2718.0,2717.5,0.56114857]
[1645931851060,0.00568297,2718.0,2717.6,0.56114857]
[1645931851262,0.00568297,2718.0,2717.7,0.56114857]
[1645931851463,0.00568297,2718.0,2717.8,0.56114857]
[1645931851763,0.3694,2718.6,2717.4,15.76]
[1645931851965,0.00568303,2717.9,2717.5,0.56076866]
[1645931852764,0.3694,2718.6,2717.5,0.56076866]
[1645931853064,0.00568308,2717.8,2717.6,3.5]
[1645931853263,0.00568308,2717.8,2717.7,0.56076866]
[1645931853527,0.00568308,2717.8,2717.5,0.56076866]
[1645931853715,0.00568308,2717.8,2717.6,0.56076866]
[1645931853915,1.25008161,2718.5,2717.7,0.56076866]
[1645931854117,1.25008161,2718.5,2717.4,14.76]
[1645931854319,0.00568301,2717.8,2717.5,0.56081297]
[1645931854720,0.00568301,2717.8,2717.6,0.56081297]